[Event "November 21 Early 2023"]
[Site "https://www.chess.com"]
[Date "2023.11.21"]
[Round "11"]
[White "Kopczynski, Michal"]
[Black "Jimenez Fernandez, Rebeca"]
[Result "1-0"]
[Board "106"]
[TimeControl "180+1"]
[WhiteFideId "1124200"]
[BlackFideId "32070934"]
[WhiteElo "2174"]
[BlackElo "2015"]
[WhiteTeam "POL"]
[BlackTeam "ESP"]
[WhiteClock "0:00:53"]
[BlackClock "0:00:21"]

1. e4 {[%clk 0:03:00]}  g6 {[%clk 0:02:59]} 2. d4 {[%clk 0:03:01]}  Bg7 {[%clk 0:03:00]} 3. e5 {[%clk 0:03:01]}  d6 {[%clk 0:02:59]} 4. f4 {[%clk 0:03:01]}  dxe5 {[%clk 0:02:56]} 5. fxe5 {[%clk 0:03:02]}  c5 {[%clk 0:02:57]} 6. c3 {[%clk 0:03:01]}  cxd4 {[%clk 0:02:56]} 7. cxd4 {[%clk 0:03:02]}  Nc6 {[%clk 0:02:56]} 8. Nf3 {[%clk 0:03:01]}  Bg4 {[%clk 0:02:56]} 9. Bb5 {[%clk 0:02:59]}  Nh6 {[%clk 0:02:46]} 10. d5 {[%clk 0:02:58]}  a6 {[%clk 0:02:38]} 11. dxc6 {[%clk 0:02:57]}  Qxd1+ {[%clk 0:02:36]} 12. Kxd1 {[%clk 0:02:58]}  axb5 {[%clk 0:02:37]} 13. cxb7 {[%clk 0:02:59]}  Rb8 {[%clk 0:02:35]} 14. Bf4 {[%clk 0:02:51]}  O-O {[%clk 0:02:31]} 15. e6 {[%clk 0:02:39]}  Rxb7 {[%clk 0:02:30]} 16. exf7+ {[%clk 0:02:34]}  Rxf7 {[%clk 0:02:30]} 17. Bxh6 {[%clk 0:02:32]}  Bxh6 {[%clk 0:02:31]} 18. Nd2 {[%clk 0:02:31]}  Bxd2 {[%clk 0:02:28]} 19. Kxd2 {[%clk 0:02:32]}  Bxf3 {[%clk 0:02:28]} 20. gxf3 {[%clk 0:02:33]}  Rxf3 {[%clk 0:02:28]} 21. Rhf1 {[%clk 0:02:32]}  Rxf1 {[%clk 0:02:26]} 22. Rxf1 {[%clk 0:02:32]}  Kg7 {[%clk 0:02:24]} 23. Kc3 {[%clk 0:02:31]}  e5 {[%clk 0:02:23]} 24. Kb4 {[%clk 0:02:30]}  e4 {[%clk 0:02:23]} 25. Re1 {[%clk 0:02:26]}  Re7 {[%clk 0:02:23]} 26. Kxb5 {[%clk 0:02:13]}  Rb7+ {[%clk 0:02:21]} 27. Kc5 {[%clk 0:02:11]}  Rxb2 {[%clk 0:02:20]} 28. a4 {[%clk 0:02:12]}  Rxh2 {[%clk 0:02:13]} 29. a5 {[%clk 0:02:12]}  Ra2 {[%clk 0:02:12]} 30. Kb6 {[%clk 0:02:10]}  Rb2+ {[%clk 0:02:04]} 31. Kc7 {[%clk 0:02:08]}  Rb4 {[%clk 0:02:00]} 32. a6 {[%clk 0:02:08]}  Kf6 {[%clk 0:02:00]} 33. a7 {[%clk 0:02:08]}  Ra4 {[%clk 0:02:00]} 34. Kb7 {[%clk 0:02:08]}  Kf5 {[%clk 0:02:01]} 35. a8=Q {[%clk 0:02:00]}  Rxa8 {[%clk 0:02:02]} 36. Kxa8 {[%clk 0:02:00]}  h5 {[%clk 0:01:57]} 37. Kb7 {[%clk 0:01:59]}  h4 {[%clk 0:01:58]} 38. Kc6 {[%clk 0:01:59]}  g5 {[%clk 0:01:57]} 39. Kd5 {[%clk 0:01:58]}  g4 {[%clk 0:01:56]} 40. Rf1+ {[%clk 0:01:58]}  Kg5 {[%clk 0:01:54]} 41. Kxe4 {[%clk 0:01:59]}  h3 {[%clk 0:01:53]} 42. Rf8 {[%clk 0:01:18]}  g3 {[%clk 0:00:59]} 43. Kf3 {[%clk 0:01:12]}  g2 {[%clk 0:00:57]} 44. Kf2 {[%clk 0:01:02]}  Kg4 {[%clk 0:00:48]} 45. Rg8+ {[%clk 0:00:54]}  Kh4 {[%clk 0:00:46]} 46. Kg1 {[%clk 0:00:54]}  Kh5 {[%clk 0:00:41]} 47. Kh2 {[%clk 0:00:53]}  Kh4 {[%clk 0:00:40]} 48. Rg3 {[%clk 0:00:51]}  g1=Q+ {[%clk 0:00:24]} 49. Rxg1 {[%clk 0:00:52]}  Kh5 {[%clk 0:00:21]} 50. Kxh3 {[%clk 0:00:53]} 1-0

[Event "November 21 Early 2023"]
[Site "https://www.chess.com"]
[Date "2023.11.21"]
[Round "11"]
[White "Florianovitz, Derlei Alex"]
[Black "Preobrazhenska_D2011"]
[Result "0-1"]
[Board "107"]
[TimeControl "180+1"]
[WhiteFideId "2114178"]
[WhiteElo "1953"]
[BlackElo "2451"]
[WhiteTeam "BRA"]
[WhiteClock "0:00:00"]
[BlackClock "0:00:06"]

1. e4 {[%clk 0:03:00]}  c5 {[%clk 0:02:59]} 2. Nf3 {[%clk 0:03:00]}  d6 {[%clk 0:02:59]} 3. d4 {[%clk 0:03:01]}  cxd4 {[%clk 0:03:00]} 4. Nxd4 {[%clk 0:03:01]}  Nf6 {[%clk 0:03:00]} 5. Nc3 {[%clk 0:03:02]}  a6 {[%clk 0:03:01]} 6. h3 {[%clk 0:03:02]}  h5 {[%clk 0:02:59]} 7. g3 {[%clk 0:03:02]}  e5 {[%clk 0:02:44]} 8. Nde2 {[%clk 0:02:58]}  b5 {[%clk 0:02:32]} 9. Bg2 {[%clk 0:02:58]}  Bb7 {[%clk 0:02:32]} 10. O-O {[%clk 0:02:57]}  Nbd7 {[%clk 0:02:30]} 11. Be3 {[%clk 0:02:56]}  Be7 {[%clk 0:02:28]} 12. Qd2 {[%clk 0:02:50]}  Nb6 {[%clk 0:02:26]} 13. Bxb6 {[%clk 0:02:50]}  Qxb6 {[%clk 0:02:27]} 14. Nd5 {[%clk 0:02:50]}  Nxd5 {[%clk 0:02:20]} 15. exd5 {[%clk 0:02:51]}  Rc8 {[%clk 0:02:16]} 16. Nc3 {[%clk 0:02:49]}  b4 {[%clk 0:02:10]} 17. Ne4 {[%clk 0:02:48]}  Qb5 {[%clk 0:01:54]} 18. Rad1 {[%clk 0:02:43]}  Qc4 {[%clk 0:01:47]} 19. b3 {[%clk 0:02:40]}  Qb5 {[%clk 0:01:35]} 20. f4 {[%clk 0:02:20]}  exf4 {[%clk 0:01:27]} 21. Qxf4 {[%clk 0:02:17]}  Qb6+ {[%clk 0:01:21]} 22. Kh2 {[%clk 0:02:13]}  O-O {[%clk 0:01:18]} 23. Qf5 {[%clk 0:01:55]}  g6 {[%clk 0:01:04]} 24. Nf6+ {[%clk 0:01:53]}  Bxf6 {[%clk 0:00:56]} 25. Qxf6 {[%clk 0:01:53]}  Rxc2 {[%clk 0:00:54]} 26. Kh1 {[%clk 0:01:35]}  Qc5 {[%clk 0:00:36]} 27. Be4 {[%clk 0:01:12]}  Re2 {[%clk 0:00:27]} 28. Bf3 {[%clk 0:00:38]}  Rxa2 {[%clk 0:00:26]} 29. Rc1 {[%clk 0:00:21]}  Qe3 {[%clk 0:00:21]} 30. Qxd6 {[%clk 0:00:14]}  Qd2 {[%clk 0:00:15]} 31. g4 {[%clk 0:00:07]}  hxg4 {[%clk 0:00:15]} 32. hxg4 {[%clk 0:00:07]}  Qh6+ {[%clk 0:00:08]} 33. Kg1 {[%clk 0:00:07]}  Qe3+ {[%clk 0:00:08]} 34. Kh1 {[%clk 0:00:07]}  Kg7 {[%clk 0:00:06]} 35. Bg2 {[%clk 0:00:00]}  Rh8+ {[%clk 0:00:06]} 0-1

[Event "November 21 Early 2023"]
[Site "https://www.chess.com"]
[Date "2023.11.21"]
[Round "11"]
[White "Feliz Dotel, Dewar Bienvenido"]
[Black "Reprintsev, Alexander"]
[Result "0-1"]
[Board "108"]
[TimeControl "180+1"]
[WhiteFideId "6402801"]
[BlackFideId "14100541"]
[WhiteElo "2069"]
[BlackElo "2229"]
[WhiteTeam "DOM"]
[BlackTeam "UKR"]
[WhiteClock "0:00:00"]
[BlackClock "0:00:05"]

1. d4 {[%clk 0:03:00]}  d5 {[%clk 0:02:49]} 2. e3 {[%clk 0:03:00]}  Nf6 {[%clk 0:02:45]} 3. Nf3 {[%clk 0:03:00]}  Bg4 {[%clk 0:02:44]} 4. h3 {[%clk 0:02:59]}  Bh5 {[%clk 0:02:44]} 5. g4 {[%clk 0:02:59]}  Bg6 {[%clk 0:02:43]} 6. Ne5 {[%clk 0:02:59]}  Nbd7 {[%clk 0:02:43]} 7. h4 {[%clk 0:02:59]}  h5 {[%clk 0:01:58]} 8. Nxg6 {[%clk 0:02:59]}  fxg6 {[%clk 0:01:58]} 9. Bd3 {[%clk 0:02:59]}  Qb8 {[%clk 0:01:36]} 10. Bxg6+ {[%clk 0:02:56]}  Kd8 {[%clk 0:01:37]} 11. g5 {[%clk 0:02:56]}  Ne4 {[%clk 0:01:32]} 12. Nd2 {[%clk 0:02:43]}  Nxd2 {[%clk 0:01:25]} 13. Bxd2 {[%clk 0:02:44]}  c6 {[%clk 0:01:25]} 14. Qf3 {[%clk 0:02:37]}  Qd6 {[%clk 0:01:23]} 15. a3 {[%clk 0:02:32]}  Qxg6 {[%clk 0:01:22]} 16. O-O-O {[%clk 0:02:24]}  e6 {[%clk 0:01:18]} 17. Rhe1 {[%clk 0:02:22]}  Bd6 {[%clk 0:01:16]} 18. e4 {[%clk 0:02:21]}  Rf8 {[%clk 0:01:16]} 19. Qd3 {[%clk 0:02:18]}  Bf4 {[%clk 0:01:15]} 20. Qb3 {[%clk 0:02:05]}  Kc7 {[%clk 0:01:13]} 21. exd5 {[%clk 0:01:59]}  exd5 {[%clk 0:01:12]} 22. Bxf4+ {[%clk 0:01:51]}  Rxf4 {[%clk 0:01:12]} 23. Re7 {[%clk 0:01:48]}  Qd6 {[%clk 0:01:07]} 24. Rde1 {[%clk 0:01:42]}  Raf8 {[%clk 0:01:06]} 25. Qa4 {[%clk 0:01:29]}  a6 {[%clk 0:00:31]} 26. Qa5+ {[%clk 0:01:29]}  Kb8 {[%clk 0:00:30]} 27. Rxg7 {[%clk 0:01:16]}  Rxf2 {[%clk 0:00:20]} 28. Kb1 {[%clk 0:01:15]}  Rf1 {[%clk 0:00:20]} 29. Rh7 {[%clk 0:01:10]}  Rxe1+ {[%clk 0:00:18]} 30. Qxe1 {[%clk 0:01:11]}  Ka7 {[%clk 0:00:18]} 31. Rxh5 {[%clk 0:01:11]}  Nb6 {[%clk 0:00:18]} 32. Rh6 {[%clk 0:01:10]}  Qf4 {[%clk 0:00:17]} 33. Qb4 {[%clk 0:01:09]}  Qf1+ {[%clk 0:00:13]} 34. Ka2 {[%clk 0:01:09]}  Rf2 {[%clk 0:00:12]} 35. Rh7 {[%clk 0:01:00]}  Qc4+ {[%clk 0:00:12]} 36. Qxc4 {[%clk 0:01:00]}  Nxc4 {[%clk 0:00:12]} 37. g6 {[%clk 0:01:00]}  Rxc2 {[%clk 0:00:10]} 38. g7 {[%clk 0:00:59]}  Rxb2+ {[%clk 0:00:10]} 39. Ka1 {[%clk 0:01:00]}  Rg2 {[%clk 0:00:11]} 40. h5 {[%clk 0:00:58]}  Nxa3 {[%clk 0:00:12]} 41. h6 {[%clk 0:00:57]}  Nb5 {[%clk 0:00:12]} 42. Kb1 {[%clk 0:00:56]}  Nc3+ {[%clk 0:00:12]} 43. Kc1 {[%clk 0:00:56]}  Ne2+ {[%clk 0:00:12]} 44. Kd1 {[%clk 0:00:56]}  Nxd4 {[%clk 0:00:12]} 45. Rh8 {[%clk 0:00:55]}  Nf5 {[%clk 0:00:13]} 46. Ra8+ {[%clk 0:00:40]}  Kxa8 {[%clk 0:00:12]} 47. h7 {[%clk 0:00:41]}  Rxg7 {[%clk 0:00:12]} 48. h8=Q+ {[%clk 0:00:41]}  Ka7 {[%clk 0:00:13]} 49. Qf8 {[%clk 0:00:37]}  Rg1+ {[%clk 0:00:09]} 50. Kd2 {[%clk 0:00:35]}  Rg2+ {[%clk 0:00:08]} 51. Ke1 {[%clk 0:00:34]}  Rg5 {[%clk 0:00:06]} 52. Qf6 {[%clk 0:00:33]}  Rh5 {[%clk 0:00:05]} 53. Qg6 {[%clk 0:00:32]}  Rh1+ {[%clk 0:00:05]} 54. Kf2 {[%clk 0:00:32]}  Nd6 {[%clk 0:00:05]} 55. Qg2 {[%clk 0:00:25]}  Rb1 {[%clk 0:00:04]} 56. Ke3 {[%clk 0:00:22]}  Nc4+ {[%clk 0:00:04]} 57. Kd4 {[%clk 0:00:22]}  Rb5 {[%clk 0:00:05]} 58. Qg1 {[%clk 0:00:21]}  a5 {[%clk 0:00:05]} 59. Qa1 {[%clk 0:00:18]}  Nb6 {[%clk 0:00:04]} 60. Qg1 {[%clk 0:00:15]}  a4 {[%clk 0:00:05]} 61. Qa1 {[%clk 0:00:14]}  Ra5 {[%clk 0:00:05]} 62. Qa3 {[%clk 0:00:12]}  Nc4 {[%clk 0:00:05]} 63. Qa1 {[%clk 0:00:11]}  a3 {[%clk 0:00:05]} 64. Kc3 {[%clk 0:00:12]}  a2 {[%clk 0:00:06]} 65. Kb4 {[%clk 0:00:12]}  Ka6 {[%clk 0:00:05]} 66. Qh8 {[%clk 0:00:08]}  c5+ {[%clk 0:00:04]} 67. Kb3 {[%clk 0:00:05]}  Ra3+ {[%clk 0:00:04]} 68. Kc2 {[%clk 0:00:03]}  a1=Q {[%clk 0:00:04]} 69. Qa8+ {[%clk 0:00:01]}  Kb6 {[%clk 0:00:05]} 70. Qd8+ {[%clk 0:00:01]}  Kb5 {[%clk 0:00:05]} 71. Qd7+ {[%clk 0:00:01]}  Ka5 {[%clk 0:00:05]} 72. Qc7+ {[%clk 0:00:01]}  Nb6 {[%clk 0:00:04]} 73. Qxc5+ {[%clk 0:00:00]}  Ka6 {[%clk 0:00:05]} 0-1

[Event "November 21 Early 2023"]
[Site "https://www.chess.com"]
[Date "2023.11.21"]
[Round "11"]
[White "Palacio,Igor Da Paz"]
[Black "Darmanin, Jake"]
[Result "0-1"]
[Board "113"]
[TimeControl "180+1"]
[WhiteFideId "2121140"]
[BlackFideId "5601061"]
[WhiteElo "2126"]
[BlackElo "2119"]
[WhiteTeam "BRA"]
[BlackTeam "MLT"]
[WhiteClock "0:00:00"]
[BlackClock "0:01:13"]

1. e4 {[%clk 0:03:00]}  e5 {[%clk 0:02:59]} 2. Nf3 {[%clk 0:03:00]}  Nc6 {[%clk 0:03:00]} 3. Bb5 {[%clk 0:03:01]}  a6 {[%clk 0:03:00]} 4. Ba4 {[%clk 0:03:01]}  Nf6 {[%clk 0:03:00]} 5. O-O {[%clk 0:03:01]}  Be7 {[%clk 0:03:01]} 6. Re1 {[%clk 0:03:01]}  b5 {[%clk 0:03:02]} 7. Bb3 {[%clk 0:03:01]}  d6 {[%clk 0:03:02]} 8. c3 {[%clk 0:03:01]}  O-O {[%clk 0:03:03]} 9. d3 {[%clk 0:03:02]}  Na5 {[%clk 0:03:04]} 10. Bc2 {[%clk 0:03:02]}  c5 {[%clk 0:03:04]} 11. Nbd2 {[%clk 0:03:02]}  Re8 {[%clk 0:03:03]} 12. Nf1 {[%clk 0:03:02]}  g6 {[%clk 0:03:03]} 13. Ne3 {[%clk 0:03:00]}  Bf8 {[%clk 0:03:00]} 14. a4 {[%clk 0:02:57]}  Nc6 {[%clk 0:02:58]} 15. h3 {[%clk 0:02:57]}  b4 {[%clk 0:02:56]} 16. Nc4 {[%clk 0:02:54]}  Be6 {[%clk 0:02:49]} 17. Bg5 {[%clk 0:02:40]}  Rb8 {[%clk 0:02:41]} 18. Nfd2 {[%clk 0:02:36]}  h6 {[%clk 0:02:37]} 19. Bxf6 {[%clk 0:02:36]}  Qxf6 {[%clk 0:02:37]} 20. Ne3 {[%clk 0:02:33]}  Ne7 {[%clk 0:02:33]} 21. Ndc4 {[%clk 0:02:32]}  d5 {[%clk 0:02:25]} 22. exd5 {[%clk 0:02:09]}  Nxd5 {[%clk 0:02:26]} 23. Nxd5 {[%clk 0:01:43]}  Bxd5 {[%clk 0:02:27]} 24. Ne3 {[%clk 0:01:41]}  Be6 {[%clk 0:02:22]} 25. Ng4 {[%clk 0:01:21]}  Bxg4 {[%clk 0:02:19]} 26. Qxg4 {[%clk 0:01:21]}  bxc3 {[%clk 0:02:16]} 27. bxc3 {[%clk 0:01:22]}  Rb2 {[%clk 0:02:15]} 28. Re2 {[%clk 0:01:17]}  e4 {[%clk 0:02:09]} 29. dxe4 {[%clk 0:01:01]}  Qxc3 {[%clk 0:02:06]} 30. Rc1 {[%clk 0:00:35]}  Bg7 {[%clk 0:01:57]} 31. Qd7 {[%clk 0:00:06]}  Reb8 {[%clk 0:01:54]} 32. Qd3 {[%clk 0:00:04]}  Qe5 {[%clk 0:01:43]} 33. Bd1 {[%clk 0:00:04]}  R2b4 {[%clk 0:01:32]} 34. Qxa6 {[%clk 0:00:03]}  Rxe4 {[%clk 0:01:27]} 35. Rxe4 {[%clk 0:00:03]}  Qxe4 {[%clk 0:01:27]} 36. Bf3 {[%clk 0:00:03]}  Qd4 {[%clk 0:01:22]} 37. Qc4 {[%clk 0:00:02]}  Rb1 {[%clk 0:01:15]} 38. Qc2 {[%clk 0:00:00]}  Rb2 {[%clk 0:01:13]} 0-1

[Event "November 21 Early 2023"]
[Site "https://www.chess.com"]
[Date "2023.11.21"]
[Round "11"]
[White "Pace, Christopher"]
[Black "Shapiro, Daniel"]
[Result "1-0"]
[Board "114"]
[TimeControl "180+1"]
[WhiteFideId "2610167"]
[BlackFideId "2001780"]
[WhiteElo "2416"]
[BlackElo "2336"]
[WhiteTeam "CAN"]
[BlackTeam "USA"]
[WhiteClock "0:00:26"]
[BlackClock "0:00:00"]

1. e4 {[%clk 0:03:00]}  c5 {[%clk 0:02:59]} 2. Nf3 {[%clk 0:02:59]}  Nc6 {[%clk 0:03:00]} 3. d4 {[%clk 0:02:55]}  cxd4 {[%clk 0:02:59]} 4. Nxd4 {[%clk 0:02:56]}  Nf6 {[%clk 0:02:59]} 5. Nc3 {[%clk 0:02:53]}  d6 {[%clk 0:03:00]} 6. f3 {[%clk 0:02:51]}  Qb6 {[%clk 0:02:48]} 7. Nb3 {[%clk 0:02:39]}  e6 {[%clk 0:02:45]} 8. a4 {[%clk 0:02:31]}  a6 {[%clk 0:02:36]} 9. a5 {[%clk 0:02:30]}  Qc7 {[%clk 0:02:36]} 10. Be3 {[%clk 0:02:29]}  Nd7 {[%clk 0:02:33]} 11. Na4 {[%clk 0:02:24]}  Nxa5 {[%clk 0:02:15]} 12. Nxa5 {[%clk 0:02:03]}  Qxa5+ {[%clk 0:02:14]} 13. b4 {[%clk 0:02:04]}  Qc7 {[%clk 0:01:58]} 14. c4 {[%clk 0:02:03]}  b6 {[%clk 0:01:52]} 15. Be2 {[%clk 0:02:01]}  Be7 {[%clk 0:01:51]} 16. O-O {[%clk 0:02:01]}  O-O {[%clk 0:01:50]} 17. Rc1 {[%clk 0:02:01]}  Bb7 {[%clk 0:01:49]} 18. Qe1 {[%clk 0:01:39]}  Rab8 {[%clk 0:01:44]} 19. Qf2 {[%clk 0:01:39]}  Bc8 {[%clk 0:01:37]} 20. Rfd1 {[%clk 0:01:37]}  Re8 {[%clk 0:01:24]} 21. Nc3 {[%clk 0:01:31]}  Bb7 {[%clk 0:01:14]} 22. f4 {[%clk 0:01:25]}  Nf6 {[%clk 0:01:05]} 23. Bxb6 {[%clk 0:01:24]}  Qc8 {[%clk 0:00:51]} 24. Bd3 {[%clk 0:01:13]}  Ng4 {[%clk 0:00:30]} 25. Qg3 {[%clk 0:01:13]}  Bc6 {[%clk 0:00:15]} 26. c5 {[%clk 0:01:06]}  Nf6 {[%clk 0:00:06]} 27. e5 {[%clk 0:01:00]}  dxe5 {[%clk 0:00:04]} 28. fxe5 {[%clk 0:01:01]}  Nd5 {[%clk 0:00:03]} 29. Nxd5 {[%clk 0:00:46]}  Bxd5 {[%clk 0:00:03]} 30. Bf1 {[%clk 0:00:39]}  g6 {[%clk 0:00:03]} 31. Ra1 {[%clk 0:00:37]}  Bb7 {[%clk 0:00:02]} 32. h4 {[%clk 0:00:35]}  Bd8 {[%clk 0:00:01]} 33. Bxd8 {[%clk 0:00:32]}  Rxd8 {[%clk 0:00:02]} 34. Rd6 {[%clk 0:00:33]}  Rxd6 {[%clk 0:00:01]} 35. exd6 {[%clk 0:00:34]}  Qc6 {[%clk 0:00:01]} 36. Rd1 {[%clk 0:00:30]}  Ra8 {[%clk 0:00:01]} 37. h5 {[%clk 0:00:27]}  a5 {[%clk 0:00:00]} 38. h6 {[%clk 0:00:26]} 1-0

[Event "November 21 Early 2023"]
[Site "https://www.chess.com"]
[Date "2023.11.21"]
[Round "11"]
[White "Hoffmann, Asa"]
[Black "Rios Escobar, Adan"]
[Result "1-0"]
[Board "116"]
[TimeControl "180+1"]
[WhiteFideId "2001470"]
[BlackFideId "3403645"]
[WhiteElo "2117"]
[BlackElo "2414"]
[WhiteTeam "USA"]
[BlackTeam "CHI"]
[WhiteClock "0:01:16"]
[BlackClock "0:00:01"]

1. d4 {[%clk 0:02:56]}  Nf6 {[%clk 0:02:59]} 2. Bg5 {[%clk 0:02:56]}  e6 {[%clk 0:02:57]} 3. Nd2 {[%clk 0:02:54]}  c5 {[%clk 0:02:57]} 4. e3 {[%clk 0:02:53]}  Nc6 {[%clk 0:02:56]} 5. c3 {[%clk 0:02:53]}  Qb6 {[%clk 0:02:52]} 6. Rb1 {[%clk 0:02:53]}  d5 {[%clk 0:02:50]} 7. f4 {[%clk 0:02:52]}  Be7 {[%clk 0:02:47]} 8. Ngf3 {[%clk 0:02:52]}  Bd7 {[%clk 0:02:47]} 9. Bd3 {[%clk 0:02:52]}  c4 {[%clk 0:02:47]} 10. Bc2 {[%clk 0:02:52]}  Qc7 {[%clk 0:02:47]} 11. O-O {[%clk 0:02:51]}  b5 {[%clk 0:02:47]} 12. Ne5 {[%clk 0:02:51]}  a5 {[%clk 0:02:45]} 13. e4 {[%clk 0:02:50]}  h6 {[%clk 0:02:43]} 14. Bxf6 {[%clk 0:02:48]}  gxf6 {[%clk 0:02:42]} 15. Nxd7 {[%clk 0:02:44]}  Qxd7 {[%clk 0:02:39]} 16. exd5 {[%clk 0:02:44]}  Qxd5 {[%clk 0:02:35]} 17. Be4 {[%clk 0:02:42]}  Qd7 {[%clk 0:02:34]} 18. Qh5 {[%clk 0:02:42]}  f5 {[%clk 0:02:28]} 19. Bf3 {[%clk 0:02:38]}  Rb8 {[%clk 0:02:08]} 20. a4 {[%clk 0:02:36]}  b4 {[%clk 0:01:57]} 21. Nxc4 {[%clk 0:02:36]}  Nxd4 {[%clk 0:01:51]} 22. Ne5 {[%clk 0:02:28]}  Nxf3+ {[%clk 0:01:47]} 23. Rxf3 {[%clk 0:02:24]}  Bc5+ {[%clk 0:01:47]} 24. Kh1 {[%clk 0:02:23]}  Qc7 {[%clk 0:01:41]} 25. Re1 {[%clk 0:02:13]}  Rb6 {[%clk 0:01:41]} 26. Nc4 {[%clk 0:02:08]}  Ra6 {[%clk 0:01:37]} 27. Qxf5 {[%clk 0:02:06]}  Be7 {[%clk 0:01:31]} 28. Qb5+ {[%clk 0:02:01]}  Qc6 {[%clk 0:01:19]} 29. Qb8+ {[%clk 0:01:55]}  Bd8 {[%clk 0:01:19]} 30. Rd1 {[%clk 0:01:49]}  Ke7 {[%clk 0:01:18]} 31. Rfd3 {[%clk 0:01:46]}  Bc7 {[%clk 0:01:02]} 32. Qxh8 {[%clk 0:01:40]}  Ra8 {[%clk 0:00:18]} 33. Rd7+ {[%clk 0:01:32]}  Qxd7 {[%clk 0:00:14]} 34. Rxd7+ {[%clk 0:01:31]}  Kxd7 {[%clk 0:00:14]} 35. Qxa8 {[%clk 0:01:30]}  Bxf4 {[%clk 0:00:15]} 36. Qxa5 {[%clk 0:01:27]}  bxc3 {[%clk 0:00:14]} 37. bxc3 {[%clk 0:01:27]}  h5 {[%clk 0:00:14]} 38. Qxh5 {[%clk 0:01:25]}  f5 {[%clk 0:00:13]} 39. a5 {[%clk 0:01:23]}  Kc6 {[%clk 0:00:12]} 40. Qf7 {[%clk 0:01:22]}  e5 {[%clk 0:00:11]} 41. Qxf5 {[%clk 0:01:20]}  Kc5 {[%clk 0:00:11]} 42. g3 {[%clk 0:01:20]}  Bc1 {[%clk 0:00:07]} 43. Qxe5+ {[%clk 0:01:20]}  Kxc4 {[%clk 0:00:08]} 44. Qd4+ {[%clk 0:01:20]}  Kb3 {[%clk 0:00:08]} 45. Qb4+ {[%clk 0:01:20]}  Ka2 {[%clk 0:00:04]} 46. c4 {[%clk 0:01:19]}  Be3 {[%clk 0:00:03]} 47. a6 {[%clk 0:01:19]}  Bd4 {[%clk 0:00:02]} 48. c5 {[%clk 0:01:18]}  Be3 {[%clk 0:00:02]} 49. a7 {[%clk 0:01:18]}  Bxc5 {[%clk 0:00:01]} 50. a8=R+ {[%clk 0:01:17]}  Ba7 {[%clk 0:00:01]} 51. Rxa7# {[%clk 0:01:16]} 1-0

[Event "November 21 Early 2023"]
[Site "https://www.chess.com"]
[Date "2023.11.21"]
[Round "11"]
[White "Nekoo04"]
[Black "MIss_MIaMI"]
[Result "0-1"]
[Board "121"]
[TimeControl "180+1"]
[WhiteElo "2296"]
[BlackElo "2373"]
[WhiteClock "0:00:00"]
[BlackClock "0:00:12"]

1. d4 {[%clk 0:02:59]}  c5 {[%clk 0:02:58]} 2. d5 {[%clk 0:02:59]}  g6 {[%clk 0:02:59]} 3. c4 {[%clk 0:02:59]}  Bg7 {[%clk 0:02:59]} 4. Nc3 {[%clk 0:03:00]}  Bxc3+ {[%clk 0:03:00]} 5. bxc3 {[%clk 0:03:01]}  Qa5 {[%clk 0:03:00]} 6. Qc2 {[%clk 0:02:59]}  f5 {[%clk 0:03:00]} 7. Bd2 {[%clk 0:02:36]}  e5 {[%clk 0:02:58]} 8. e4 {[%clk 0:02:32]}  d6 {[%clk 0:02:56]} 9. f4 {[%clk 0:02:31]}  fxe4 {[%clk 0:02:43]} 10. Qxe4 {[%clk 0:02:19]}  Bf5 {[%clk 0:02:43]} 11. Qe2 {[%clk 0:02:13]}  Qc7 {[%clk 0:02:27]} 12. Nf3 {[%clk 0:02:11]}  e4 {[%clk 0:02:25]} 13. Ng5 {[%clk 0:02:08]}  Nf6 {[%clk 0:02:19]} 14. h3 {[%clk 0:02:03]}  h6 {[%clk 0:02:03]} 15. Nf3 {[%clk 0:01:50]}  Qe7 {[%clk 0:01:52]} 16. Nh4 {[%clk 0:01:46]}  h5 {[%clk 0:01:20]} 17. g3 {[%clk 0:01:33]}  Nbd7 {[%clk 0:01:16]} 18. Bg2 {[%clk 0:01:32]}  O-O-O {[%clk 0:01:15]} 19. O-O {[%clk 0:01:31]}  Rde8 {[%clk 0:01:14]} 20. Rfe1 {[%clk 0:01:27]}  Nb6 {[%clk 0:01:12]} 21. a4 {[%clk 0:01:25]}  Kb8 {[%clk 0:01:02]} 22. a5 {[%clk 0:01:25]}  Nc8 {[%clk 0:01:03]} 23. Kh2 {[%clk 0:00:52]}  Qd7 {[%clk 0:00:58]} 24. Be3 {[%clk 0:00:30]}  Ka8 {[%clk 0:00:51]} 25. Ra3 {[%clk 0:00:28]}  Re7 {[%clk 0:00:51]} 26. Rb1 {[%clk 0:00:24]}  Qc7 {[%clk 0:00:34]} 27. Bf1 {[%clk 0:00:19]}  Rhe8 {[%clk 0:00:33]} 28. Qb2 {[%clk 0:00:15]}  Qb8 {[%clk 0:00:24]} 29. Be2 {[%clk 0:00:15]}  Qc7 {[%clk 0:00:23]} 30. Bd1 {[%clk 0:00:14]}  Rg8 {[%clk 0:00:20]} 31. a6 {[%clk 0:00:10]}  b6 {[%clk 0:00:20]} 32. Ba4 {[%clk 0:00:10]}  Kb8 {[%clk 0:00:20]} 33. Bc6 {[%clk 0:00:07]}  Bd7 {[%clk 0:00:19]} 34. Bxd7 {[%clk 0:00:06]}  Rxd7 {[%clk 0:00:18]} 35. Qf2 {[%clk 0:00:05]}  Rf7 {[%clk 0:00:17]} 36. Ra2 {[%clk 0:00:05]}  Ne7 {[%clk 0:00:18]} 37. f5 {[%clk 0:00:03]}  g5 {[%clk 0:00:14]} 38. Ng2 {[%clk 0:00:02]}  g4 {[%clk 0:00:13]} 39. h4 {[%clk 0:00:00]}  Nd7 {[%clk 0:00:12]} 0-1

[Event "November 21 Early 2023"]
[Site "https://www.chess.com"]
[Date "2023.11.21"]
[Round "11"]
[White "Dishman, Stephen"]
[Black "Quirke, Jeffrey"]
[Result "1-0"]
[Board "122"]
[TimeControl "180+1"]
[WhiteFideId "403024"]
[BlackFideId "2013029"]
[WhiteElo "2204"]
[BlackElo "2234"]
[WhiteTeam "ENG"]
[BlackTeam "USA"]
[WhiteClock "0:00:14"]
[BlackClock "0:00:00"]

1. d4 {[%clk 0:03:00]}  Nf6 {[%clk 0:02:58]} 2. Bg5 {[%clk 0:03:00]}  c5 {[%clk 0:02:53]} 3. d5 {[%clk 0:02:59]}  Ne4 {[%clk 0:02:50]} 4. Bf4 {[%clk 0:02:59]}  e6 {[%clk 0:02:49]} 5. f3 {[%clk 0:02:57]}  Bd6 {[%clk 0:02:48]} 6. Bxd6 {[%clk 0:02:53]}  Nxd6 {[%clk 0:02:48]} 7. e4 {[%clk 0:02:52]}  e5 {[%clk 0:02:45]} 8. c4 {[%clk 0:02:47]}  O-O {[%clk 0:02:45]} 9. Nc3 {[%clk 0:02:47]}  f5 {[%clk 0:02:43]} 10. Bd3 {[%clk 0:02:44]}  a6 {[%clk 0:02:33]} 11. a4 {[%clk 0:02:39]}  Qa5 {[%clk 0:02:29]} 12. Ra3 {[%clk 0:02:26]}  fxe4 {[%clk 0:02:09]} 13. fxe4 {[%clk 0:02:25]}  Nf7 {[%clk 0:01:52]} 14. Nf3 {[%clk 0:02:24]}  d6 {[%clk 0:01:52]} 15. O-O {[%clk 0:02:21]}  Bg4 {[%clk 0:01:50]} 16. Rb3 {[%clk 0:02:18]}  Qc7 {[%clk 0:01:46]} 17. Qe1 {[%clk 0:02:14]}  Bxf3 {[%clk 0:01:45]} 18. Rxf3 {[%clk 0:02:13]}  Nd7 {[%clk 0:01:43]} 19. Qg3 {[%clk 0:02:02]}  Kh8 {[%clk 0:01:35]} 20. Ra3 {[%clk 0:02:00]}  Nf6 {[%clk 0:01:21]} 21. Qh4 {[%clk 0:01:52]}  Qe7 {[%clk 0:00:55]} 22. Qf2 {[%clk 0:01:01]}  Nh6 {[%clk 0:00:44]} 23. h3 {[%clk 0:01:00]}  Nhg8 {[%clk 0:00:43]} 24. Ra1 {[%clk 0:00:59]}  Nh5 {[%clk 0:00:41]} 25. Rf1 {[%clk 0:00:54]}  Rxf3 {[%clk 0:00:40]} 26. Qxf3 {[%clk 0:00:51]}  Nf4 {[%clk 0:00:41]} 27. Ne2 {[%clk 0:00:43]}  Nxe2+ {[%clk 0:00:32]} 28. Bxe2 {[%clk 0:00:41]}  Nf6 {[%clk 0:00:25]} 29. g4 {[%clk 0:00:40]}  Qc7 {[%clk 0:00:16]} 30. g5 {[%clk 0:00:37]}  Ng8 {[%clk 0:00:16]} 31. Qf7 {[%clk 0:00:33]}  Qb6 {[%clk 0:00:17]} 32. Bg4 {[%clk 0:00:17]}  Qxb2 {[%clk 0:00:16]} 33. Bf5 {[%clk 0:00:17]}  Qd4+ {[%clk 0:00:14]} 34. Kg2 {[%clk 0:00:16]}  Qxc4 {[%clk 0:00:14]} 35. Qh5 {[%clk 0:00:14]}  h6 {[%clk 0:00:00]} 36. Qg6 {[%clk 0:00:14]} 1-0